bitfinex/quotes_BTCUSD_20220304
["timestamp","ask_amount","ask_price","bid_price","bid_amount"]
[1646374641112,0.12587983,41431.0,41430.0,0.43460911]
[1646374641915,0.12587983,41431.0,41430.0,0.63333037]
[1646374642352,0.12587983,41431.0,41430.0,0.81038185]
[1646374643054,0.12587983,41431.0,41430.0,0.78442059]
[1646374643455,0.12587983,41431.0,41430.0,1.03282216]
[1646374644055,0.12587983,41431.0,41430.0,0.78442059]
[1646374644853,0.12587983,41431.0,41430.0,0.02416]
[1646374645054,0.12587983,41431.0,41430.0,0.50970161]
[1646374645253,0.12587983,41431.0,41430.0,0.6973577]
[1646374646409,0.12587983,41431.0,41430.0,0.8459577]
[1646374649854,0.12587983,41431.0,41430.0,0.65830161]
[1646374650859,0.12587983,41431.0,41430.0,0.81878582]
[1646374657352,0.12587983,41431.0,41430.0,1.1190563]
[1646374657650,0.12587983,41431.0,41430.0,1.0948963]
[1646374658551,0.12587983,41431.0,41430.0,1.47751119]
[1646374658753,0.12587983,41431.0,41430.0,1.1794293]
[1646374659552,8.441e-05,41438.0,41431.0,1.52416]
[1646374659753,8.441e-05,41438.0,41436.0,0.19901862]
[1646374659957,8.441e-05,41438.0,41437.0,0.78855216]
[1646374660156,8.441e-05,41438.0,41437.0,0.72818916]
[1646374660356,8.441e-05,41438.0,41437.0,1.04444213]
[1646374660760,8.441e-05,41438.0,41437.0,0.84542351]
[1646374660957,8.441e-05,41438.0,41437.0,1.04442446]
[1646374661410,8.441e-05,41438.0,41437.0,0.82817149]
[1646374662009,8.441e-05,41438.0,41437.0,0.62917054]
[1646374662207,8.441e-05,41438.0,41437.0,0.329142]
[1646374662409,8.441e-05,41438.0,41437.0,0.280542]
[1646374662607,8.441e-05,41438.0,41437.0,0.180542]
[1646374665457,8.441e-05,41438.0,41437.0,0.35116294]
[1646374665758,8.441e-05,41438.0,41437.0,0.280542]
[1646374666959,8.441e-05,41438.0,41437.0,0.180542]
[1646374667359,8.441e-05,41438.0,41436.0,0.1]
[1646374667560,8.441e-05,41438.0,41434.0,0.49902949]
[1646374667761,8.441e-05,41438.0,41434.0,0.19900095]
[1646374667963,8.441e-05,41438.0,41432.0,0.25177327]
[1646374667967,8.441e-05,41438.0,41433.0,0.19900095]
[1646374668160,0.21509494,41434.0,41433.0,0.19900095]
[1646374668821,0.21509494,41434.0,41432.0,0.19900095]
[1646374669021,0.1994403,41438.0,41431.0,0.19900095]
[1646374670022,0.20414743,41437.0,41433.0,0.21483081]
[1646374670222,0.20414743,41437.0,41431.0,0.19900095]
[1646374670824,0.20414743,41437.0,41430.0,0.74942854]
[1646374671025,0.20414743,41437.0,41431.0,0.19916334]
[1646374671225,0.40377442,41437.0,41430.0,0.94859897]
[1646374671425,0.40377442,41437.0,41430.0,0.74942854]
[1646374671426,0.20414743,41437.0,41430.0,0.74942854]
[1646374671626,0.40377547,41437.0,41430.0,0.94860155]
[1646374671827,0.20414743,41437.0,41430.0,0.4494]
[1646374672025,0.16404137,41432.0,41430.0,0.4494]
[1646374672226,0.19962529,41436.0,41430.0,0.4494]
[1646374672457,0.19962529,41436.0,41430.0,0.72522578]
[1646374672867,0.19962529,41436.0,41430.0,0.4494]
[1646374673058,0.19962529,41435.0,41430.0,0.4494]
[1646374673259,0.19962529,41434.0,41427.0,0.19917455]
[1646374673860,0.19962529,41435.0,41428.0,0.21391163]
[1646374675262,0.19962529,41435.0,41430.0,0.27128089]
[1646374675664,0.19962529,41434.0,41430.0,0.27128089]
[1646374675865,0.19962529,41435.0,41430.0,0.27128089]
[1646374677705,0.20414743,41437.0,41430.0,0.27128089]
[1646374677706,0.19962529,41436.0,41430.0,0.27128089]
[1646374680253,0.20414743,41437.0,41430.0,0.27128089]
[1646374680453,0.19958057,41436.0,41428.0,0.21391163]
[1646374680655,0.20414743,41437.0,41428.0,0.21391163]
[1646374680656,0.19958057,41435.0,41428.0,0.21391163]
[1646374681258,0.19958057,41436.0,41428.0,0.21391163]
[1646374681656,0.19958057,41436.0,41429.0,0.3]
[1646374682455,0.41090293,41436.0,41431.0,0.26830009]
[1646374682656,0.21132236,41436.0,41431.0,0.26830009]
[1646374683057,0.41090293,41436.0,41431.0,0.26830009]
[1646374683257,0.41090293,41436.0,41429.0,0.3]
[1646374683714,0.41090293,41436.0,41428.0,0.21391163]
[1646374683715,0.19958057,41435.0,41426.0,0.21123344]
[1646374683918,0.19958057,41435.0,41426.0,0.01205]
[1646374684114,0.19958057,41435.0,41426.0,0.11205]
[1646374684315,0.27478306,41428.0,41426.0,0.11205]
[1646374684515,0.19958057,41435.0,41426.0,0.11205]
[1646374685316,0.19044448,41432.0,41426.0,0.11205]
[1646374685517,0.25633621,41430.0,41426.0,0.11205]
[1646374685719,0.19044448,41432.0,41426.0,0.01205]
[1646374687018,0.28799099,41433.0,41426.0,0.01205]
[1646374687461,0.19958057,41435.0,41426.0,0.01205]
[1646374688056,0.19915569,41434.0,41426.0,0.01205]
[1646374688256,0.39873626,41434.0,41426.0,0.01205]
[1646374688655,0.2569259,41431.0,41426.0,0.27781816]
[1646374688855,0.2569259,41431.0,41426.0,0.01205]
[1646374690858,0.19915569,41434.0,41426.0,0.01205]
[1646374691717,0.19958057,41435.0,41426.0,0.01205]
[1646374691918,0.19958057,41435.0,41429.0,0.26805727]
[1646374692117,0.19958057,41436.0,41429.0,0.26805727]
[1646374692917,0.28617187,41434.0,41429.0,0.26805727]
[1646374693417,0.28617187,41434.0,41426.0,0.01205]
[1646374693617,0.19958057,41436.0,41426.0,0.01205]
[1646374694719,0.27864942,41434.0,41429.0,0.27866614]
[1646374694960,0.27864942,41434.0,41426.0,0.01205]
[1646374695863,0.27864942,41434.0,41426.0,0.27144002]
[1646374696265,0.27864942,41434.0,41426.0,0.01205]
[1646374697666,0.30280942,41434.0,41423.0,0.19918344]
[1646374698165,0.07175296,41428.0,41422.0,0.3]
[1646374698367,0.27197611,41424.0,41419.0,0.46146336]
[1646374698611,0.07175296,41428.0,41419.0,0.26235467]
[1646374698813,0.17280987,41427.0,41419.0,0.26235467]
[1646374699111,0.17280987,41427.0,41419.0,0.4394551]
[1646374699313,0.17280987,41427.0,41419.0,0.26235467]
[1646374700315,0.23052662,41427.0,41417.0,0.4494]
[1646374700911,0.25468662,41427.0,41415.0,0.305]
[1646374701611,0.25468662,41427.0,41415.0,0.79304063]
[1646374702667,0.27070954,41423.0,41415.0,0.79304063]
[1646374703662,0.25468662,41427.0,41415.0,0.79304063]
[1646374703863,0.25468662,41427.0,41415.0,0.57834432]
[1646374704961,0.20312825,41423.0,41415.0,0.57834432]
[1646374706220,0.19696987,41427.0,41415.0,0.57834432]
[1646374706622,0.19696987,41427.0,41415.0,0.78272785]
[1646374707421,0.25804385,41425.0,41415.0,0.78272785]
[1646374708225,0.25804385,41425.0,41415.0,0.57834432]
[1646374708424,0.25804385,41425.0,41415.0,0.27834432]
[1646374709025,0.25804385,41425.0,41415.0,0.47780663]
[1646374709224,0.25804385,41425.0,41416.0,0.46734172]
[1646374709424,0.25804385,41425.0,41416.0,0.16734172]
[1646374709624,0.25804385,41425.0,41415.0,0.47780663]
[1646374709862,0.25804385,41425.0,41416.0,0.3]
[1646374710161,0.25804385,41425.0,41415.0,0.47780663]
[1646374710360,0.25804385,41425.0,41416.0,0.3]
[1646374710764,0.25804385,41425.0,41417.0,0.20145183]
[1646374711263,0.25804385,41425.0,41415.0,0.47780663]
[1646374711663,0.19696987,41427.0,41415.0,0.47780663]
[1646374712063,0.15858394,41427.0,41415.0,0.47780663]
[1646374712265,0.13442394,41427.0,41417.0,0.19365824]
[1646374712464,0.15858394,41427.0,41415.0,0.47780663]
[1646374712664,0.28151544,41426.0,41415.0,0.47780663]
[1646374713065,0.28151544,41426.0,41416.0,0.19946231]
[1646374713477,0.28151544,41426.0,41417.0,0.49360384]
[1646374714318,0.28151544,41426.0,41422.0,0.27210529]
[1646374714519,0.13442394,41427.0,41417.0,0.49360384]
[1646374715721,0.13442394,41427.0,41421.0,0.25020091]
[1646374715722,0.26995019,41426.0,41421.0,0.25020091]
[1646374715922,0.13442394,41427.0,41421.0,0.25020091]
[1646374716921,0.31200708,41429.0,41422.0,0.3]
[1646374717123,0.19950708,41431.0,41422.0,0.3]
[1646374717381,0.4102839,41433.0,41422.0,0.3]
[1646374717579,0.001,41433.0,41422.0,0.3]
[1646374717979,0.001,41433.0,41429.0,0.28577016]
[1646374718380,0.19950708,41434.0,41429.0,0.28577016]
[1646374718581,0.19950708,41434.0,41427.0,0.19661147]
[1646374719480,0.19950708,41432.0,41427.0,0.19661147]
[1646374719781,0.41822876,41432.0,41427.0,0.44461955]
[1646374720182,0.19950708,41432.0,41427.0,0.63833496]
[1646374720381,0.19950708,41432.0,41427.0,0.44461955]
[1646374720582,0.19950708,41431.0,41427.0,0.19661147]
[1646374720782,0.19950708,41432.0,41424.0,0.3]
[1646374720980,0.19950708,41433.0,41424.0,0.3]
[1646374721819,0.23046576,41427.0,41424.0,0.3]
[1646374722017,0.19950708,41433.0,41424.0,0.3]
[1646374722618,0.19950708,41433.0,41426.0,0.1956008]
[1646374723018,0.21298201,41431.0,41426.0,0.1956008]
[1646374723417,0.19950708,41433.0,41426.0,0.1956008]
[1646374724219,0.19950708,41433.0,41424.0,0.3]
[1646374724619,0.22425611,41430.0,41424.0,0.3]
[1646374725260,0.19950708,41433.0,41424.0,0.3]
[1646374725661,0.17774276,41432.0,41424.0,0.3]
[1646374726060,0.17765481,41432.0,41424.0,0.3]
[1646374726260,0.25170811,41431.0,41426.0,0.20731732]
[1646374726760,0.17765481,41432.0,41426.0,0.20731732]
[1646374727359,0.17765481,41432.0,41424.0,0.3]
[1646374727561,0.37716189,41432.0,41423.0,0.4494]
[1646374727761,0.19950708,41431.0,41423.0,0.4494]
[1646374727961,0.19950708,41430.0,41423.0,0.7494]
[1646374728359,0.19950708,41430.0,41426.0,0.19831038]
[1646374728625,0.19950708,41431.0,41426.0,0.19831038]
[1646374728830,0.19950708,41431.0,41423.0,0.3]
[1646374729025,0.2819682,41430.0,41423.0,0.3]
[1646374730028,0.2819682,41430.0,41424.0,0.1867813]
[1646374730228,0.19950708,41431.0,41424.0,0.1867813]
[1646374730430,0.19950708,41431.0,41423.0,0.3]
[1646374730629,0.19950708,41431.0,41422.0,0.48234519]
[1646374731031,0.19950708,41431.0,41423.0,0.3]
[1646374731329,0.23635385,41429.0,41422.0,0.48234519]
[1646374731528,0.23635385,41429.0,41422.0,0.68510856]
[1646374732130,0.23635385,41429.0,41423.0,0.3]
[1646374732582,0.19950708,41431.0,41423.0,0.3]
[1646374733584,0.22907628,41429.0,41423.0,0.3]
[1646374733984,0.19950708,41431.0,41423.0,0.3]
[1646374734888,0.48187791,41431.0,41423.0,0.3]
[1646374735184,0.19950708,41430.0,41423.0,0.3]
[1646374735384,0.48187791,41431.0,41423.0,0.3]
[1646374735584,0.19950708,41431.0,41423.0,0.3]
[1646374740363,0.19950708,41431.0,41423.0,0.49946231]
[1646374741768,0.19950708,41431.0,41423.0,0.3]
[1646374741970,0.19950708,41431.0,41423.0,0.49946231]
[1646374742167,0.24250193,41432.0,41423.0,0.3]
[1646374742368,0.24250193,41432.0,41423.0,0.49959746]
[1646374742567,0.24250193,41432.0,41423.0,0.49959738]
[1646374742769,0.24250193,41432.0,41423.0,0.3]
[1646374742971,0.19963203,41430.0,41429.0,0.0999]
[1646374743169,0.74963073,41431.0,41423.0,0.49959441]
[1646374743368,0.19963073,41430.0,41423.0,0.3]
[1646374743618,0.19963073,41430.0,41422.0,0.60531447]
[1646374744420,0.19963073,41430.0,41422.0,0.88838997]
[1646374748565,0.19963073,41430.0,41422.0,0.60531447]
[1646374749163,0.70977682,41431.0,41422.0,0.60531447]
[1646374749164,0.19963073,41429.0,41422.0,0.60531447]
[1646374749565,0.19963073,41429.0,41422.0,0.4025511]
[1646374750567,0.19963073,41427.0,41422.0,0.20295669]
[1646374750967,0.22075478,41425.0,41422.0,0.20295669]
[1646374751614,0.19963073,41427.0,41422.0,0.20295669]
[1646374752214,0.19963073,41428.0,41422.0,0.20295669]
[1646374752417,0.19963073,41427.0,41422.0,0.20295669]
[1646374752816,0.19963073,41427.0,41423.0,0.27705331]
[1646374753416,0.001,41429.0,41423.0,0.47664772]
[1646374754216,0.23199591,41429.0,41424.0,0.19959441]
[1646374754515,0.19963073,41430.0,41424.0,0.19959441]
[1646374755788,0.19963073,41429.0,41424.0,0.19959441]
[1646374756590,0.19963073,41430.0,41427.0,0.16584421]
[1646374756790,0.19963073,41430.0,41424.0,0.19959441]
[1646374757188,0.27784946,41431.0,41424.0,0.19959441]
[1646374757189,0.19963073,41429.0,41424.0,0.19959441]
[1646374757891,0.52728701,41431.0,41422.0,0.4025511]
[1646374757892,0.19963073,41427.0,41422.0,0.4025511]
[1646374758712,0.19963073,41428.0,41424.0,0.23062098]
[1646374758914,0.19963073,41428.0,41423.0,0.41639494]
[1646374759211,0.19963073,41428.0,41423.0,0.19959441]
[1646374761111,0.19963073,41427.0,41424.0,0.19959441]
[1646374761714,0.19963073,41427.0,41423.0,0.19959441]
[1646374761915,0.19963073,41428.0,41424.0,0.19959441]
[1646374762114,0.19963073,41427.0,41424.0,0.19959441]
[1646374763481,0.19963073,41427.0,41423.0,0.19959441]
[1646374764281,0.19963073,41427.0,41423.0,0.37857764]
[1646374765181,0.19963073,41427.0,41424.0,0.46516511]
[1646374765387,0.25043755,41430.0,41424.0,0.46516511]
[1646374765388,0.19963073,41428.0,41424.0,0.46516511]
[1646374765585,0.45910188,41433.0,41426.0,0.02416]
[1646374765586,0.15977682,41433.0,41426.0,0.02416]
[1646374765786,0.08653599,41442.0,41428.0,0.02416]
[1646374765787,0.15977682,41434.0,41428.0,0.02416]
[1646374765984,0.15977682,41434.0,41430.0,0.6077]
[1646374766216,0.21298306,41441.0,41432.0,0.19425278]
[1646374766415,0.21298306,41441.0,41436.0,0.2081482]
[1646374766616,0.21298306,41441.0,41437.0,0.0486]
[1646374766917,0.06669438,41442.0,41438.0,0.0486]
[1646374767115,0.06669438,41442.0,41438.0,0.01113593]
[1646374767116,0.29945018,41440.0,41438.0,0.01113593]
[1646374767314,0.29945018,41439.0,41438.0,0.01113593]
[1646374767917,0.29945018,41440.0,41438.0,0.01113593]
[1646374769317,0.29945018,41440.0,41435.0,0.001]
[1646374770569,0.29945018,41440.0,41432.0,0.0486]
[1646374770768,0.24849541,41441.0,41432.0,0.0486]
[1646374770769,0.29945018,41439.0,41432.0,0.0486]
[1646374771766,0.29945018,41440.0,41432.0,0.0486]
[1646374773169,0.29945018,41440.0,41429.0,0.15910653]
[1646374773368,0.29945018,41440.0,41429.0,0.16210653]
[1646374773615,0.54794559,41441.0,41429.0,0.16210653]
[1646374774519,0.24949312,41438.0,41429.0,0.16210653]
[1646374774717,0.24949312,41438.0,41429.0,0.15910653]
[1646374775118,0.70771777,41441.0,41429.0,0.15910653]
[1646374775119,0.24949312,41437.0,41429.0,0.15910653]
[1646374775519,0.19959969,41435.0,41429.0,0.15910653]
[1646374776119,0.19959969,41435.0,41427.0,0.20927467]
[1646374776317,0.24949312,41437.0,41427.0,0.20927467]
[1646374776318,0.19959969,41434.0,41427.0,0.20927467]
[1646374778465,0.45755886,41434.0,41429.0,0.24497646]
[1646374779467,0.19959969,41434.0,41429.0,0.24497646]
[1646374779668,0.19959969,41436.0,41429.0,0.24497646]
[1646374779869,0.19959969,41437.0,41429.0,0.24497646]
[1646374780871,0.4570144,41437.0,41429.0,0.24497646]
[1646374781117,0.19959969,41436.0,41429.0,0.24497646]
[1646374781921,0.19959969,41435.0,41427.0,0.40884141]
[1646374782322,0.49959969,41435.0,41427.0,0.24816674]
[1646374782522,0.19959969,41433.0,41425.0,0.31566674]
[1646374782722,0.49959969,41432.0,41424.0,0.2526]
[1646374783020,0.19959969,41431.0,41423.0,0.19956674]
[1646374783220,0.19959969,41431.0,41422.0,0.52410093]
[1646374783620,0.15548604,41429.0,41422.0,0.29956674]
[1646374784222,0.15548604,41429.0,41422.0,0.19956674]
[1646374784868,0.20806439,41428.0,41422.0,0.19956674]
[1646374787668,0.15548604,41429.0,41422.0,0.19956674]
[1646374789124,0.20416529,41427.0,41422.0,0.19956674]
[1646374790421,0.15548604,41429.0,41422.0,0.19956674]
[1646374791621,0.20822172,41426.0,41422.0,0.19956674]
[1646374792367,0.20822172,41426.0,41421.0,0.19956674]
[1646374792567,0.15548604,41429.0,41421.0,0.19956674]
[1646374793167,0.15548604,41429.0,41422.0,0.19956674]
[1646374793569,0.27930319,41428.0,41422.0,0.19956674]
[1646374795173,0.27930319,41428.0,41421.0,0.25995474]
[1646374795372,0.19959969,41430.0,41421.0,0.25995474]
[1646374795572,0.19959969,41430.0,41421.0,0.26395474]
[1646374795973,0.19959969,41430.0,41421.0,0.20356674]
[1646374796220,0.19959969,41430.0,41422.0,0.19956674]
[1646374796426,0.27407771,41430.0,41422.0,0.19956674]
[1646374796621,0.27407771,41430.0,41425.0,0.2179147]
[1646374797123,0.4736774,41430.0,41425.0,0.2179147]
[1646374797724,0.27407771,41430.0,41425.0,0.2179147]
[1646374799425,0.19959969,41431.0,41425.0,0.2179147]
[1646374800469,0.19959969,41430.0,41425.0,0.2179147]
[1646374800668,0.19959969,41431.0,41425.0,0.2179147]
[1646374801871,0.19959969,41430.0,41425.0,0.2179147]
[1646374802071,0.19959969,41431.0,41425.0,0.2179147]
[1646374802272,0.19959969,41431.0,41426.0,0.0486]
[1646374802872,0.19959969,41431.0,41426.0,0.00324112]
[1646374803171,0.43454066,41431.0,41425.0,0.1711361]
[1646374803372,0.43454066,41431.0,41426.0,0.0486]
[1646374804134,0.19959969,41431.0,41426.0,0.0486]
[1646374806336,0.19959969,41432.0,41426.0,0.0486]
[1646374806537,0.46899605,41431.0,41426.0,0.0486]
[1646374807368,0.19959969,41431.0,41426.0,0.0486]
[1646374809372,0.19959969,41430.0,41426.0,0.0486]
[1646374810975,0.19959969,41430.0,41422.0,0.19959723]
[1646374811223,0.19959969,41429.0,41421.0,0.19959723]
[1646374811421,0.3,41428.0,41421.0,0.19959723]
[1646374811624,0.49959969,41428.0,41420.0,0.19959723]
[1646374811822,0.19959969,41428.0,41420.0,0.19959723]
[1646374812022,0.1773203,41422.0,41420.0,0.19959723]
[1646374812422,0.27538384,41421.0,41419.0,0.19959723]
[1646374812721,0.27538384,41421.0,41418.0,0.003]
[1646374813022,0.27538384,41421.0,41417.0,0.64899723]
[1646374814325,0.3,41420.0,41416.0,0.19959723]
[1646374814523,0.3,41420.0,41415.0,0.005]
[1646374814524,0.49809603,41420.0,41415.0,0.005]
[1646374814727,0.19967875,41419.0,41415.0,0.005]
[1646374815169,0.29841728,41420.0,41415.0,0.005]
[1646374815171,0.19967875,41418.0,41415.0,0.005]
[1646374815371,0.45820845,41420.0,41415.0,0.005]
[1646374815372,0.6578872,41420.0,41415.0,0.005]
[1646374815768,0.49809603,41420.0,41415.0,0.005]
[1646374817372,0.29841728,41420.0,41415.0,0.005]
[1646374817573,0.49809603,41420.0,41415.0,0.005]
[1646374817969,1.69967875,41419.0,41413.0,0.002]
[1646374818371,0.20839117,41418.0,41413.0,0.002]
[1646374818628,0.3,41417.0,41413.0,0.002]
[1646374825177,0.29807014,41417.0,41413.0,0.002]
[1646374826724,0.69978447,41417.0,41413.0,0.002]
[1646374830377,0.31169318,41417.0,41413.0,0.002]
[1646374830576,0.31169318,41417.0,41413.0,0.00180001]
[1646374830577,0.20322903,41415.0,41413.0,0.00180001]
[1646374830775,0.54998783,41414.0,41413.0,0.00180001]
[1646374844879,0.24998783,41414.0,41413.0,0.00180001]
[1646374847580,0.24998783,41414.0,41413.0,0.10170001]
[1646374848482,0.24998783,41414.0,41413.0,0.00180001]
[1646374850523,0.24998783,41414.0,41413.0,0.00109469]
[1646374854376,0.3630202,41415.0,41413.0,0.00109469]
[1646374854974,0.15979117,41415.0,41413.0,0.00109469]
[1646374855177,0.19941286,41418.0,41415.0,0.1790671]
[1646374855474,0.19941286,41419.0,41415.0,0.1790671]
[1646374855676,0.19941286,41420.0,41415.0,0.1790671]
[1646374855874,0.06458056,41421.0,41415.0,0.1790671]
[1646374855875,0.19941286,41421.0,41416.0,0.3]
[1646374856121,0.31751286,41422.0,41416.0,0.3]
[1646374856323,0.20441286,41422.0,41421.0,0.23278837]
[1646374856523,0.20441286,41422.0,41416.0,0.3]
[1646374856921,0.19941286,41422.0,41416.0,0.3]
[1646374857623,0.25202326,41419.0,41416.0,0.3]
[1646374858223,0.19941286,41421.0,41416.0,0.3]
[1646374859125,0.17606063,41424.0,41415.0,0.1790671]
[1646374859126,0.19941286,41419.0,41415.0,0.1790671]
[1646374859970,0.06231816,41418.0,41415.0,0.1790671]
[1646374860169,0.22140994,41416.0,41415.0,0.1790671]
[1646374860373,0.19038501,41417.0,41415.0,0.1790671]
[1646374861174,0.38979787,41417.0,41415.0,0.1790671]
[1646374861575,0.43952818,41417.0,41415.0,0.1790671]
[1646374861771,0.25255828,41416.0,41415.0,0.1790671]
[1646374862773,1.3,41415.0,41413.0,0.00109469]
[1646374863173,1.54914317,41415.0,41413.0,0.00109469]
[1646374865930,0.24914317,41414.0,41413.0,0.00109469]
[1646374870273,0.40901961,41414.0,41413.0,0.00109469]
[1646374870474,0.40901961,41414.0,41413.0,0.00045407]
[1646374874727,0.15987644,41414.0,41413.0,0.00045407]
[1646374875180,0.17339547,41414.0,41413.0,0.00045407]
[1646374875380,0.15987644,41414.0,41413.0,0.00045407]
[1646374878483,0.15987644,41414.0,41413.0,0.00097654]
[1646374881430,0.4095307,41414.0,41413.0,0.00097654]
[1646374881631,0.15987644,41414.0,41413.0,0.00097654]
[1646374881830,0.3,41414.0,41413.0,0.00097654]
[1646374882031,0.59896949,41414.0,41413.0,0.00097654]
[1646374883072,0.5996195,41414.0,41413.0,0.00097654]
[1646374883873,0.75949594,41414.0,41413.0,0.00097654]
[1646374884074,0.45987644,41414.0,41413.0,0.00097654]
[1646374884374,0.24966853,41414.0,41413.0,0.00097654]
[1646374885176,0.24966853,41414.0,41413.0,9.244e-05]
[1646374886223,0.45949594,41416.0,41413.0,9.244e-05]
[1646374886224,0.2996195,41415.0,41413.0,9.244e-05]
[1646374887122,0.2996195,41416.0,41413.0,9.244e-05]
[1646374887320,0.23303276,41415.0,41413.0,9.244e-05]
[1646374887724,0.45949594,41416.0,41413.0,9.244e-05]
[1646374888125,0.2996195,41416.0,41413.0,9.244e-05]
[1646374888727,0.24967409,41414.0,41413.0,9.244e-05]
[1646374888924,0.54367913,41416.0,41413.0,9.244e-05]
[1646374889123,0.24967429,41414.0,41413.0,9.244e-05]
[1646374889324,0.45949594,41416.0,41413.0,9.244e-05]
[1646374889525,0.2996195,41416.0,41413.0,9.244e-05]
[1646374889726,0.249677,41414.0,41413.0,9.244e-05]
[1646374890574,0.249677,41414.0,41413.0,0.09993244]
[1646374890776,0.249677,41414.0,41413.0,3.244e-05]
[1646374891576,0.2996195,41415.0,41413.0,3.244e-05]
[1646374892779,0.5583869,41415.0,41413.0,3.244e-05]
[1646374892977,0.2996195,41415.0,41413.0,3.244e-05]
[1646374893178,0.24967703,41414.0,41413.0,3.244e-05]
[1646374893921,0.45949594,41416.0,41413.0,3.244e-05]
[1646374894322,0.2996195,41416.0,41413.0,3.244e-05]
[1646374894522,0.45949594,41416.0,41413.0,3.244e-05]
[1646374895724,0.0130417,41414.0,41413.0,3.244e-05]
[1646374895924,0.2996195,41416.0,41413.0,3.244e-05]
[1646374896124,0.2996195,41415.0,41413.0,3.244e-05]
[1646374896524,0.52070074,41415.0,41413.0,3.244e-05]
[1646374896924,0.2996195,41415.0,41413.0,3.244e-05]
[1646374898171,0.2996195,41416.0,41413.0,3.244e-05]
[1646374898372,0.24967538,41414.0,41413.0,3.244e-05]
[1646374898771,0.36685,41414.0,41413.0,3.244e-05]
[1646374898971,0.2996195,41415.0,41413.0,3.244e-05]
[1646374899171,0.36685,41414.0,41413.0,3.244e-05]
[1646374899372,0.2996195,41415.0,41413.0,3.244e-05]
[1646374901826,0.2996195,41414.0,41413.0,3.244e-05]
[1646374902625,0.59170872,41416.0,41413.0,3.244e-05]
[1646374903025,0.29969293,41414.0,41413.0,3.244e-05]
[1646374903924,0.59170872,41416.0,41413.0,3.244e-05]
[1646374904125,0.15,41414.0,41413.0,3.244e-05]
[1646374904332,2.49581859,41414.0,41413.0,3.244e-05]
[1646374904530,0.06047956,41411.0,41408.0,0.0011]
[1646374904727,1.52416,41408.0,41397.0,0.0011]
[1646374904981,0.19984321,41398.0,41397.0,0.0011]
[1646374905185,1.05673136,41398.0,41397.0,0.0011]
[1646374905381,1.05673136,41398.0,41393.0,0.0011]
[1646374905382,0.75,41397.0,41391.0,0.18730485]
[1646374905582,0.0486,41396.0,41390.0,0.0011]
[1646374906182,0.0486,41396.0,41390.0,0.20354126]
[1646374906481,0.0486,41396.0,41390.0,0.0011]
[1646374907481,0.25219635,41394.0,41390.0,0.0011]
[1646374907682,0.30079635,41394.0,41390.0,0.0011]
[1646374911130,0.31480105,41394.0,41390.0,0.0011]
[1646374911532,0.0127239,41393.0,41390.0,0.0011]
[1646374911933,0.20752135,41391.0,41390.0,0.0011]
[1646374913179,0.31374035,41394.0,41390.0,0.0011]
[1646374913781,0.30079635,41394.0,41390.0,0.0011]
[1646374915182,0.30079635,41394.0,41390.0,0.00067001]
[1646374917123,0.0486,41394.0,41390.0,0.00067001]
[1646374917326,0.1139,41397.0,41390.0,0.00067001]
[1646374918129,0.26240791,41394.0,41390.0,0.00067001]
[1646374918427,0.1139,41397.0,41390.0,0.00067001]
[1646374919430,0.18538437,41396.0,41390.0,0.00067001]
[1646374920080,0.28758156,41395.0,41390.0,0.00067001]
[1646374920480,0.01118974,41393.0,41390.0,0.00067001]
[1646374920679,0.28758156,41395.0,41390.0,0.00067001]
[1646374921490,0.01446116,41394.0,41390.0,0.00067001]
[1646374922284,0.01389215,41393.0,41390.0,0.00067001]
[1646374922482,0.28758156,41395.0,41390.0,0.00067001]
[1646374922685,0.01485581,41392.0,41390.0,0.00067001]
[1646374925329,0.0673565,41391.0,41390.0,0.00067001]
[1646374925828,0.1159565,41391.0,41390.0,0.00067001]
[1646374926429,1.86685,41390.0,41388.0,0.0011]
[1646374926632,0.71545,41389.0,41388.0,0.0011]
[1646374926827,0.87538527,41389.0,41388.0,0.0011]
[1646374927228,0.50853527,41389.0,41388.0,0.0011]
[1646374927501,1.43488342,41389.0,41388.0,0.0011]
[1646374927704,0.79738342,41389.0,41388.0,0.0011]
[1646374927905,1.16423342,41389.0,41388.0,0.0011]
[1646374928302,0.79738342,41389.0,41388.0,0.0011]
[1646374928999,0.49738342,41389.0,41388.0,0.0011]
[1646374929703,0.30853527,41389.0,41388.0,0.0011]
[1646374929903,0.15993527,41389.0,41388.0,0.0011]
[1646374930101,0.104,41393.0,41388.0,0.0011]
[1646374930301,0.004,41393.0,41388.0,0.0011]
[1646374930902,0.16366549,41393.0,41388.0,0.0011]
[1646374931138,0.15966549,41393.0,41388.0,0.0011]
[1646374933340,0.36685,41392.0,41388.0,0.0011]
[1646374933539,0.36685,41391.0,41388.0,0.0011]
[1646374933740,0.15966549,41393.0,41388.0,0.0011]
[1646374933741,0.05250971,41392.0,41388.0,0.0011]
[1646374933940,0.36685,41391.0,41388.0,0.0011]
[1646374934741,0.66685,41391.0,41388.0,0.0011]
[1646374935478,0.3,41391.0,41388.0,0.0011]
[1646374935679,0.36685,41389.0,41388.0,0.0011]
[1646374935879,0.01198293,41389.0,41388.0,0.0011]
[1646374936279,0.37883293,41389.0,41388.0,0.0011]
[1646374937980,0.3776664,41389.0,41388.0,0.0011]
[1646374938182,0.01211586,41390.0,41388.0,0.0011]
[1646374938384,0.36685,41389.0,41388.0,0.0011]
[1646374938628,0.0116911,41390.0,41388.0,0.0011]
[1646374939030,0.0117806,41391.0,41388.0,0.0011]
[1646374939228,0.28550484,41392.0,41388.0,0.0011]
[1646374939631,0.23299513,41392.0,41388.0,0.0011]
[1646374939829,0.13299513,41392.0,41388.0,0.0011]
[1646374941035,0.36685,41391.0,41388.0,0.0011]
[1646374941233,0.64942934,41392.0,41388.0,0.0011]
[1646374941433,0.01067568,41390.0,41388.0,0.0011]
[1646374941634,0.36685,41389.0,41388.0,0.0011]
[1646374941935,0.37862412,41389.0,41388.0,0.0011]
[1646374942137,0.36685,41390.0,41388.0,0.00042651]
[1646374942380,0.55998582,41391.0,41388.0,0.00042651]
[1646374943180,0.25998582,41391.0,41388.0,0.00042651]
[1646374943380,0.36685,41390.0,41388.0,0.00042651]
[1646374943884,0.1,41391.0,41388.0,0.00042651]
[1646374944081,0.4378748,41392.0,41388.0,0.00042651]
[1646374944282,0.36685,41391.0,41388.0,0.00042651]
[1646374945282,0.95,41390.0,41385.0,0.00087759]
[1646374948553,1.14954239,41390.0,41385.0,0.00087759]
[1646374953639,0.19954239,41390.0,41385.0,0.00087759]
[1646374953838,0.19954239,41391.0,41385.0,0.00087759]
[1646374954037,0.29976481,41396.0,41385.0,0.00087759]
[1646374954038,0.005,41393.0,41385.0,0.04947759]
[1646374954239,0.005,41393.0,41386.0,0.3]
[1646374954841,0.005,41393.0,41390.0,0.22520591]
[1646374955039,0.005,41393.0,41386.0,0.49965146]
[1646374955243,0.36913415,41397.0,41386.0,0.49965146]